lending/lending_fUSD_20241007
["ID","MTS","AMOUNT","RATE_DAILY","PERIOD"]
[340031062,1728339040102,-500.0,0.00039998,120]
[340031063,1728339040111,-500.0,0.00039998,120]
[340031064,1728339040120,-500.0,0.00039998,24]
[340031065,1728339040133,-500.0,0.00039998,120]
[340031066,1728339040146,-500.0,0.00039998,120]
[340031067,1728339040155,-500.0,0.00039998,120]
[340031068,1728339040165,-500.0,0.00039998,120]
[340031069,1728339040175,-500.0,0.00039998,120]
[340031070,1728339040184,-500.0,0.00039998,120]
[340031071,1728339040193,-500.0,0.00039998,120]
[340031072,1728339040202,-500.0,0.00039998,120]
[340031073,1728339040211,-500.0,0.00039998,120]
[340031074,1728339040220,-500.0,0.00039998,120]
[340031075,1728339040230,-500.0,0.00039998,120]
[340031076,1728339040239,-500.0,0.00039998,120]
[340031077,1728339040248,-500.0,0.00039998,120]
[340031078,1728339040258,-500.0,0.00039998,120]
[340031079,1728339040267,-509.84341076,0.00039998,120]
[340031080,1728339040276,-500.0,0.00039998,120]
[340031081,1728339040286,-500.0,0.00039998,120]
[340031082,1728339040295,-500.0,0.00039998,30]
[340031083,1728339040304,-500.0,0.00039998,120]
[340031084,1728339040313,-2161.84,0.00039998,120]
[340031086,1728339040323,-500.0,0.00039998,120]
[340031088,1728339040332,-590.59585392,0.00039998,120]
[340031090,1728339040342,-500.0,0.00039998,120]
[340031092,1728339040351,-500.0,0.00039998,120]
[340031093,1728339040360,-500.0,0.00039998,120]
[340031095,1728339040369,-500.0,0.00039998,120]
[340031097,1728339040379,-500.0,0.00039998,120]
[340031099,1728339040390,-165.08674382,0.00039998,120]
[340031101,1728339040399,-500.0,0.00039998,120]
[340031103,1728339040408,-1561.14,0.00039998,120]
[340031104,1728339040417,-500.0,0.00039998,120]
[340031106,1728339040427,-500.0,0.00039998,120]
[340031108,1728339040436,-500.0,0.00039998,120]
[340031110,1728339040445,-500.0,0.00039998,120]
[340031112,1728339040454,-1549.6,0.00039998,120]
[340031114,1728339040463,-500.0,0.00039998,120]
[340031115,1728339040472,-1303.19,0.00039998,120]
[340031117,1728339040481,-608.54,0.00039998,120]
[340031119,1728339040491,-500.0,0.00039998,120]
[340031121,1728339040500,-500.0,0.00039998,120]
[340031123,1728339040509,-1167.15,0.00039998,120]
[340031125,1728339040518,-1000.0,0.00039998,120]
[340031126,1728339040528,-500.0,0.00039998,120]
[340031134,1728339040537,-500.0,0.00039998,120]
[340031136,1728339040615,-500.0,0.00039998,120]
[340031138,1728339040625,-500.0,0.00039998,120]
[340031140,1728339040635,-500.0,0.00039998,120]
[340031142,1728339040644,-500.0,0.00039998,120]
[340031143,1728339040654,-500.0,0.00039998,120]
[340031145,1728339040663,-1536.35,0.00039998,120]
[340031147,1728339040672,-500.0,0.00039998,120]
[340031149,1728339040681,-2043.47,0.00039998,120]
[340031151,1728339040690,-500.0,0.00039998,120]
[340031153,1728339040700,-500.0,0.00039998,120]
[340031154,1728339040709,-500.0,0.00039998,120]
[340031156,1728339040718,-405.88668652,0.00039998,120]
[340031158,1728339040727,-500.0,0.00039998,120]
[340031160,1728339040737,-500.0,0.00039998,120]
[340031162,1728339040746,-500.0,0.00039998,120]
[340031164,1728339040756,-1249.9,0.00039998,120]
[340031166,1728339040766,-500.0,0.00039998,120]
[340031168,1728339040776,-500.0,0.00039998,120]
[340031170,1728339040785,-500.0,0.00039998,120]
[340031172,1728339040795,-1876.59,0.00039998,120]
[340031174,1728339040805,-526.09,0.00039998,120]
[340031175,1728339040815,-500.0,0.00039998,120]
[340031177,1728339040825,-1823.29,0.00039998,120]
[340031179,1728339040835,-500.0,0.00039998,120]
[340031181,1728339040844,-1457.79,0.00039998,120]
[340031183,1728339040853,-500.0,0.00039998,120]
[340031185,1728339040863,-343.68,0.00039998,120]
[340031187,1728339040873,-700.0,0.00039998,120]
[340031189,1728339040883,-500.0,0.00039998,120]
[340031191,1728339040893,-500.0,0.00039998,120]
[340031193,1728339040903,-652.28,0.00039998,120]
[340031194,1728339040912,-500.0,0.00039998,120]
[340031196,1728339040922,-586.09,0.00039998,120]
[340031197,1728339040931,-470.71062683,0.00039998,120]
[340031198,1728339040942,-557.57,0.00039998,120]
[340031199,1728339040951,-2035.37,0.00039998,120]
[340031200,1728339040960,-500.0,0.00039998,120]
[340031201,1728339040969,-1520.94,0.00039998,120]
[340031202,1728339040979,-500.0,0.00039998,120]
[340031203,1728339040988,-500.0,0.00039998,120]
[340031204,1728339040998,-500.0,0.00039998,120]
[340031205,1728339041008,-500.0,0.00039998,120]
[340031206,1728339041018,-500.0,0.00039998,120]
[340031207,1728339041027,-527.19,0.00039998,120]
[340031208,1728339041036,-500.0,0.00039998,120]
[340031209,1728339041046,-500.0,0.00039998,120]
[340031210,1728339041055,-500.0,0.00039998,120]
[340031211,1728339041064,-500.0,0.00039998,120]
[340031212,1728339041074,-1579.83,0.00039998,120]
[340031213,1728339041083,-500.0,0.00039998,120]
[340031214,1728339041092,-500.0,0.00039998,120]
[340031215,1728339041101,-324.65637269,0.00039998,120]
[340031216,1728339041111,-500.0,0.00039998,120]
[340031217,1728339041120,-1429.54,0.00039998,120]
[340031218,1728339041131,-500.0,0.00039998,120]
[340031219,1728339041140,-597.17,0.00039998,120]
[340031220,1728339041149,-1369.37,0.00039998,120]
[340031221,1728339041158,-500.0,0.00039998,120]
[340031222,1728339041167,-500.0,0.00039998,120]
[340031223,1728339041176,-1085.84,0.00039998,120]
[340031224,1728339041185,-500.0,0.00039999,120]
[340031225,1728339041195,-500.0,0.00039999,120]
[340031226,1728339041204,-460.68814239,0.00039999,120]
[340031227,1728339041213,-495.35065326,0.00039999,120]
[340031228,1728339041223,-588.86,0.00039999,120]
[340031229,1728339041233,-500.0,0.00039999,120]
[340031230,1728339041242,-1000.0,0.00039999,120]
[340031231,1728339041251,-500.0,0.00039999,120]
[340031232,1728339041260,-500.0,0.00039999,120]
[340031233,1728339041269,-504.77,0.00039999,120]
[340031234,1728339041279,-165.18029302,0.00039999,120]
[340031235,1728339041379,-500.0,0.00039799,120]
[340031236,1728339041389,-71.76568957,0.00039897,120]
[340031237,1728339041400,-428.23431043,0.00039897,120]
[340031238,1728339041410,-315.45,0.00039998,120]
[340031239,1728339041419,-441.59138613,0.00039999,120]
[340031374,1728339044908,-872.25832085,0.00039999,120]
[340031376,1728339044918,-500.0,0.00039999,120]
[340031378,1728339044927,-500.0,0.00039999,120]
[340031380,1728339044937,-500.0,0.00039999,120]
[340031382,1728339044947,-500.0,0.00039999,120]
[340031384,1728339044956,-500.0,0.00039999,120]
[340031386,1728339044965,-640.88,0.00039999,120]
[340031388,1728339044974,-500.0,0.00039999,120]
[340031390,1728339044983,-526.04189625,0.00039999,120]
[340031392,1728339044992,-500.0,0.00039999,120]
[340031394,1728339045001,-500.0,0.00039999,120]
[340031396,1728339045011,-500.0,0.00039999,120]
[340031405,1728339045085,-500.0,0.00039999,120]
[340031407,1728339045095,-500.0,0.00039999,120]
[340031409,1728339045104,-500.0,0.00039999,120]
[340031410,1728339045113,-500.0,0.00039999,120]
[340031412,1728339045122,-500.0,0.00039999,120]
[340031415,1728339045132,-500.0,0.00039999,120]
[340031416,1728339045142,-500.0,0.00039999,120]
[340031418,1728339045151,-500.0,0.00039999,120]
[340031420,1728339045161,-500.0,0.00039999,120]
[340031422,1728339045170,-535.3,0.00039999,120]
[340031424,1728339045180,-500.0,0.00039999,120]
[340031427,1728339045190,-500.0,0.00039999,120]
[340031428,1728339045200,-684.53,0.00039999,120]
[340031430,1728339045209,-500.0,0.00039999,120]
[340031432,1728339045218,-500.0,0.00039999,120]
[340031434,1728339045228,-500.0,0.00039999,120]
[340031436,1728339045237,-2067.11,0.00039999,120]
[340031438,1728339045247,-500.0,0.00039999,120]
[340031440,1728339045256,-500.0,0.00039999,120]
[340031442,1728339045266,-500.0,0.00039999,120]
[340031444,1728339045276,-500.0,0.00039999,120]
[340031446,1728339045286,-500.0,0.00039999,120]
[340031448,1728339045296,-535.74,0.00039999,120]
[340031450,1728339045305,-500.0,0.00039999,120]
[340031452,1728339045314,-1405.1,0.00039999,120]
[340031454,1728339045323,-1977.8,0.00039999,120]
[340031456,1728339045333,-500.0,0.00039999,120]
[340031458,1728339045342,-1715.69,0.00039999,120]
[340031460,1728339045352,-71875.0,0.0004,2]
[340031462,1728339045361,-500.0,0.00040073,120]
[340031464,1728339045371,-500.0,0.00040073,120]
[340031466,1728339045380,-500.0,0.00040073,120]
[340031468,1728339045389,-1861.11,0.00040073,120]
[340031470,1728339045399,-1861.98,0.00040073,120]
[340031472,1728339045407,-159.91,0.00040073,120]
[340031474,1728339045417,-500.0,0.00040073,120]
[340031476,1728339045426,-441.33,0.00040073,120]
[340031478,1728339045435,-500.0,0.00040073,120]
[340031480,1728339045444,-500.0,0.00040073,120]
[340031482,1728339045453,-500.0,0.00040073,120]
[340031484,1728339045462,-500.0,0.00040073,120]
[340031486,1728339045471,-500.0,0.00040073,120]
[340031488,1728339045480,-500.0,0.00040073,120]
[340031490,1728339045489,-500.0,0.00040073,120]
[340031492,1728339045498,-500.0,0.00040073,120]
[340031494,1728339045507,-500.0,0.00040171,120]
[340031496,1728339045516,-500.0,0.00040171,120]
[340031498,1728339045525,-392.8,0.00040171,120]
[340031500,1728339045534,-500.0,0.00040171,120]
[340031502,1728339045543,-500.0,0.00040171,120]
[340031504,1728339045552,-500.0,0.00040171,120]
[340031506,1728339045561,-500.0,0.00040171,120]
[340031508,1728339045570,-500.0,0.00040171,120]
[340031510,1728339045579,-500.0,0.00040171,120]
[340031512,1728339045588,-500.0,0.00040171,120]
[340031514,1728339045597,-500.0,0.00040171,120]
[340031516,1728339045607,-500.0,0.00040171,120]
[340031518,1728339045616,-500.0,0.00040171,120]
[340031520,1728339045625,-17321.0753686,0.00040252,6]
[340031522,1728339045636,-16296.5012229,0.00040252,6]
[340031523,1728339045645,-17321.0753686,0.00040253,6]
[340031526,1728339045654,-8148.25061146,0.00040253,6]
[340031528,1728339045663,-51963.2261059,0.00040262,6]
[340031530,1728339045672,-48889.5036688,0.00040262,6]
[340031532,1728339045681,-17321.0753686,0.00040263,6]
[340031534,1728339045690,-24444.7518344,0.00040263,6]
[340031536,1728339045699,-500.0,0.00040263,120]
[340031538,1728339045708,-500.0,0.00040263,120]
[340031540,1728339045717,-500.0,0.00040272,120]
[340031542,1728339045726,-500.0,0.00040272,120]
[340031544,1728339045736,-500.0,0.00040272,120]
[340031546,1728339045745,-500.0,0.00040272,120]
[340031548,1728339045754,-1290.33,0.00040272,120]
[340031550,1728339045763,-500.0,0.00040272,120]
[340031552,1728339045772,-500.0,0.00040272,120]
[340031554,1728339045780,-500.0,0.00040272,120]
[340031556,1728339045789,-493.19758185,0.00040272,120]
[340031558,1728339045799,-433.02,0.00040272,120]
[340031560,1728339045807,-500.0,0.00040272,120]
[340031562,1728339045817,-500.0,0.00040272,120]
[340031564,1728339045826,-403.27,0.00040272,120]
[340031566,1728339045835,-428.67,0.00040272,120]
[340031568,1728339045844,-500.0,0.00040272,120]
[340031570,1728339045854,-500.0,0.00040272,120]
[340031572,1728339045863,-156.09,0.00040272,120]
[340031574,1728339045872,-288.76,0.00040272,120]
[340031576,1728339045883,-500.0,0.00040272,120]
[340031578,1728339045892,-500.0,0.00040272,120]
[340031580,1728339045902,-500.0,0.00040272,120]
[340031582,1728339045911,-500.0,0.00040272,120]
[340031584,1728339045920,-500.0,0.00040272,120]
[340031586,1728339045930,-364.01,0.00040272,120]
[340031588,1728339045939,-500.0,0.00040272,120]
[340031590,1728339045948,-500.0,0.00040272,120]
[340031592,1728339045957,-500.0,0.00040272,120]
[340031594,1728339045966,-226.61395928,0.00040272,120]
[340031596,1728339045975,-208.61,0.00040272,120]
[340031598,1728339045985,-500.0,0.00040272,120]
[340031600,1728339045993,-500.0,0.00040272,120]
[340031602,1728339046002,-195.41,0.00040272,120]
[340031604,1728339046011,-500.0,0.00040272,120]
[340031606,1728339046020,-500.0,0.00040272,120]
[340031608,1728339046029,-500.0,0.00040272,120]
[340031610,1728339046038,-500.0,0.00040272,120]
[340031612,1728339046047,-500.0,0.00040272,120]
[340031614,1728339046056,-500.0,0.00040272,120]
[340031616,1728339046065,-500.0,0.00040272,120]
[340031618,1728339046073,-500.0,0.00040272,30]
[340031620,1728339046083,-500.0,0.00040272,120]
[340031622,1728339046095,-500.0,0.00040272,120]
[340031624,1728339046103,-500.0,0.00040272,120]
[340031626,1728339046112,-500.0,0.00040272,120]
[340031628,1728339046121,-500.0,0.00040272,120]
[340031630,1728339046130,-500.0,0.00040272,120]
[340031632,1728339046141,-500.0,0.00040272,120]
[340031634,1728339046150,-500.0,0.00040272,120]
[340031636,1728339046160,-500.0,0.00040272,120]
[340031638,1728339046170,-168.68,0.00040272,120]
[340031647,1728339046245,-500.0,0.00040272,120]
[340031649,1728339046256,-500.0,0.00040272,120]
[340031651,1728339046265,-500.0,0.00040272,120]
[340031653,1728339046274,-170.67,0.00040272,120]
[340031655,1728339046283,-500.0,0.00040272,120]
[340031657,1728339046292,-500.0,0.00040272,120]
[340031659,1728339046302,-456.75,0.00040272,120]
[340031661,1728339046311,-500.0,0.00040272,120]
[340031663,1728339046319,-477.38224709,0.00040272,120]
[340031665,1728339046329,-1709.4,0.00040272,120]
[340031667,1728339046338,-500.0,0.00040272,120]
[340031668,1728339046347,-556.06,0.00040272,120]
[340031670,1728339046356,-1840.83,0.00040272,120]
[340031672,1728339046365,-500.0,0.00040272,120]
[340031675,1728339046375,-1730.81,0.00040272,120]
[340031677,1728339046385,-375.82787661,0.00040272,120]
[340031679,1728339046394,-500.0,0.00040272,120]
[340031681,1728339046403,-500.0,0.00040272,120]
[340031683,1728339046413,-500.0,0.00040272,120]
[340031685,1728339046422,-500.0,0.00040272,120]
[340031687,1728339046431,-500.0,0.00040272,120]
[340031689,1728339046440,-500.0,0.00040272,120]
[340031690,1728339046449,-500.0,0.00040272,120]
[340031692,1728339046458,-500.0,0.00040272,120]
[340031694,1728339046467,-500.0,0.00040272,120]
[340031696,1728339046476,-500.0,0.00040272,120]
[340031698,1728339046485,-500.0,0.00040272,120]
[340031700,1728339046494,-773.59,0.00040272,120]
[340031702,1728339046503,-500.0,0.00040272,120]
[340031704,1728339046512,-500.0,0.00040272,120]
[340031706,1728339046521,-500.0,0.00040272,120]
[340031708,1728339046530,-500.0,0.00040272,90]
[340031710,1728339046539,-500.0,0.00040272,120]
[340031712,1728339046548,-500.0,0.00040272,120]
[340031714,1728339046556,-500.0,0.00040272,120]
[340031716,1728339046566,-500.0,0.00040272,120]
[340031718,1728339046575,-500.0,0.00040272,120]
[340031720,1728339046584,-500.0,0.00040272,120]
[340031722,1728339046593,-500.0,0.00040272,120]
[340031724,1728339046602,-500.0,0.00040272,120]
[340031726,1728339046611,-710.62,0.00040272,120]
[340031728,1728339046620,-500.0,0.00040272,120]
[340031730,1728339046629,-500.0,0.00040272,120]
[340031732,1728339046638,-500.0,0.00040272,120]
[340031734,1728339046648,-500.0,0.00040272,120]
[340031736,1728339046658,-500.0,0.00040272,120]
[340031738,1728339046667,-262.18089811,0.00040272,120]
[340031740,1728339046676,-500.0,0.00040272,120]
[340031742,1728339046685,-500.0,0.00040272,120]
[340031744,1728339046694,-500.0,0.00040272,120]
[340031746,1728339046703,-500.0,0.00040272,120]
[340031748,1728339046713,-500.0,0.00040272,120]
[340031750,1728339046722,-403.90893682,0.00040272,120]
[340031752,1728339046731,-500.0,0.00040272,120]
[340031754,1728339046740,-193.56,0.00040272,120]
[340031756,1728339046749,-500.0,0.00040272,24]
[340031758,1728339046759,-500.0,0.00040272,120]
[340031760,1728339046768,-500.0,0.00040272,120]
[340031762,1728339046777,-500.0,0.00040272,120]
[340031764,1728339046786,-206.27,0.00040272,120]
[340031766,1728339046795,-500.0,0.00040272,120]
[340031767,1728339046804,-500.0,0.00040272,120]
[340031769,1728339046813,-500.0,0.00040272,120]
[340031771,1728339046822,-500.0,0.00040272,120]
[340031773,1728339046831,-644.31715981,0.00040272,120]
[340031775,1728339046840,-500.0,0.00040272,30]
[340031777,1728339046849,-500.0,0.00040272,120]
[340031779,1728339046858,-2161.84,0.00040272,120]
[340031781,1728339046866,-500.0,0.00040272,120]
[340031783,1728339046875,-500.0,0.00040272,120]
[340031785,1728339046885,-500.0,0.00040272,120]
[340031787,1728339046894,-500.0,0.00040272,120]
[340031789,1728339046903,-500.0,0.00040272,120]
[340031791,1728339046911,-500.0,0.00040272,120]
[340031793,1728339046920,-1561.14,0.00040272,120]
[340031795,1728339046929,-500.0,0.00040272,120]
[340031797,1728339046938,-500.0,0.00040272,120]
[340031799,1728339046946,-263.67690333,0.00040272,120]
[340031800,1728339046955,-500.0,0.00040272,120]
[340031802,1728339046964,-1549.6,0.00040272,120]
[340031804,1728339046973,-1303.19,0.00040272,120]
[340031806,1728339046982,-608.54,0.00040272,120]
[340031808,1728339046991,-500.0,0.00040272,120]
[340031810,1728339047000,-500.0,0.00040272,120]
[340031812,1728339047009,-1167.15,0.00040272,120]
[340031814,1728339047018,-1000.0,0.00040272,120]
[340031816,1728339047027,-500.0,0.00040272,120]
[340031818,1728339047036,-500.0,0.00040272,120]
[340031820,1728339047046,-500.0,0.00040272,120]
[340031822,1728339047055,-500.0,0.00040272,120]
[340031824,1728339047064,-500.0,0.00040272,120]
[340031826,1728339047073,-500.0,0.00040272,120]
[340031828,1728339047082,-1536.35,0.00040272,120]
[340031830,1728339047095,-500.0,0.00040272,120]
[340031832,1728339047104,-2043.47,0.00040272,120]
[340031834,1728339047114,-500.0,0.00040272,120]
[340031836,1728339047123,-500.0,0.00040272,120]
[340031838,1728339047132,-500.0,0.00040272,120]
[340031840,1728339047145,-500.0,0.00040272,120]
[340031842,1728339047155,-203.6079031,0.00040272,120]
[340031844,1728339047164,-500.0,0.00040272,120]
[340031846,1728339047174,-1249.9,0.00040272,120]
[340031848,1728339047183,-500.0,0.00040272,120]
[340031850,1728339047192,-500.0,0.00040272,120]
[340031852,1728339047201,-500.0,0.00040272,120]
[340031854,1728339047210,-1876.59,0.00040272,120]
[340031856,1728339047219,-526.09,0.00040272,120]
[340031858,1728339047228,-500.0,0.00040272,120]
[340031866,1728339047293,-1823.29,0.00040272,120]
[340031868,1728339047304,-332.54334921,0.00040272,120]
[340031870,1728339047313,-1457.79,0.00040272,120]
[340031872,1728339047323,-500.0,0.00040272,120]
[340031874,1728339047332,-700.0,0.00040272,120]
[340031876,1728339047342,-500.0,0.00040272,120]
[340031878,1728339047351,-652.28,0.00040272,120]
[340031880,1728339047360,-500.0,0.00040272,120]
[340031882,1728339047370,-557.57,0.00040272,120]
[340031884,1728339047379,-2035.37,0.00040272,120]
[340031886,1728339047399,-500.0,0.00040272,120]
[340031888,1728339047409,-1520.94,0.00040272,120]
[340031890,1728339047418,-500.0,0.00040272,120]
[340031892,1728339047427,-389.09,0.00040272,120]
[340031894,1728339047437,-422.95,0.00040272,120]
[340031896,1728339047446,-500.0,0.00040272,120]
[340031898,1728339047455,-527.19,0.00040272,120]
[340031899,1728339047464,-400.94845308,0.00040272,120]
[340031900,1728339047474,-500.0,0.00040272,120]
[340031901,1728339047483,-429.97529579,0.00040272,120]
[340031902,1728339047492,-500.0,0.00040272,120]
[340031903,1728339047501,-1579.83,0.00040272,120]
[340031904,1728339047510,-500.0,0.00040272,120]
[340031905,1728339047519,-500.0,0.00040272,120]
[340031906,1728339047529,-1429.54,0.00040272,120]
[340031907,1728339047538,-597.17,0.00040272,120]
[340031908,1728339047548,-1369.37,0.00040272,120]
[340031909,1728339047557,-500.0,0.00040272,120]
[340031910,1728339047566,-1085.84,0.00040272,120]
[340031912,1728339047575,-500.0,0.00040273,120]
[340031914,1728339047584,-409.37764405,0.00040273,120]
[340031916,1728339047593,-500.0,0.00040273,120]
[340031918,1728339047603,-1000.0,0.00040273,120]
[340031920,1728339047613,-500.0,0.00040273,120]
[340031922,1728339047622,-500.0,0.00040273,120]
[340031924,1728339047631,-504.77,0.00040273,120]
[340031926,1728339047641,-1479.03,0.00040273,120]
[340031927,1728339047650,-500.0,0.00040273,120]
[340031929,1728339047659,-500.0,0.00040273,120]
[340031931,1728339047668,-500.0,0.00040273,120]
[340031933,1728339047678,-500.0,0.00040273,120]
[340031935,1728339047688,-499.74148163,0.00040273,120]
[340031937,1728339047697,-500.0,0.00040273,120]
[340031939,1728339047706,-500.0,0.00040273,120]
[340031941,1728339047715,-500.0,0.00040273,120]
[340031943,1728339047724,-500.0,0.00040273,120]
[340031945,1728339047733,-225.54778491,0.00040273,120]
[340031947,1728339047743,-500.0,0.00040273,120]
[340031949,1728339047751,-500.0,0.00040273,120]
[340031951,1728339047760,-500.0,0.00040273,120]
[340031953,1728339047770,-327.99705541,0.00040273,120]
[340031955,1728339047779,-500.0,0.00040273,120]
[340031957,1728339047788,-500.0,0.00040273,120]
[340031959,1728339047797,-500.0,0.00040273,120]
[340031961,1728339047806,-500.0,0.00040273,120]
[340031963,1728339047815,-535.3,0.00040273,120]
[340031965,1728339047824,-500.0,0.00040273,120]
[340031967,1728339047833,-297.34382056,0.00040273,120]
[340031969,1728339047842,-684.53,0.00040273,120]
[340031970,1728339047851,-600.2802537,0.00040273,120]
[340031972,1728339047863,-500.0,0.00040273,120]
[340031974,1728339047872,-500.0,0.00040273,120]
[340031976,1728339047881,-2067.11,0.00040273,120]
[340031978,1728339047890,-500.0,0.00040273,120]
[340031980,1728339047899,-500.0,0.00040273,120]
[340031982,1728339047908,-500.0,0.00040273,120]
[340031984,1728339047917,-285.28,0.00040273,120]
[340031986,1728339047926,-500.0,0.00040273,120]
[340031988,1728339047936,-535.74,0.00040273,120]
[340031990,1728339047945,-500.0,0.00040273,120]
[340031992,1728339047954,-1405.1,0.00040273,120]
[340031994,1728339047963,-1977.8,0.00040273,120]
[340031996,1728339047973,-500.0,0.00040273,120]
[340031998,1728339047982,-1715.69,0.00040273,120]
[340032000,1728339047990,-640.28340825,0.00040347,120]
[340032002,1728339047999,-500.0,0.00040347,120]
[340032004,1728339048009,-500.0,0.00040347,120]
[340032006,1728339048019,-1861.11,0.00040347,120]
[340032008,1728339048029,-1861.98,0.00040347,120]
[340032010,1728339048038,-481.15,0.00040347,120]
[340032011,1728339048047,-500.0,0.00040347,120]
[340032013,1728339048056,-500.0,0.00040347,120]
[340032015,1728339048065,-172.10848064,0.00040347,120]
[340032017,1728339048074,-500.0,0.00040347,120]
[340032019,1728339048083,-500.0,0.00040347,120]
[340032021,1728339048097,-500.0,0.00040347,120]
[340032023,1728339048106,-500.0,0.00040347,120]
[340032025,1728339048115,-500.0,0.00040347,120]
[340032027,1728339048124,-500.0,0.00040445,120]
[340032029,1728339048137,-270.33,0.00040445,120]
[340032031,1728339048147,-503.25,0.00040445,120]
[340032033,1728339048156,-628.84,0.00040445,120]
[340032035,1728339048166,-500.0,0.00040445,120]
[340032037,1728339048177,-500.0,0.00040445,120]
[340032039,1728339048187,-500.0,0.00040445,120]
[340032041,1728339048197,-229.58,0.00040445,120]
[340032043,1728339048206,-500.0,0.00040445,120]
[340032045,1728339048217,-550.32778404,0.00040445,120]
[340032047,1728339048227,-500.0,0.00040445,120]
[340032049,1728339048237,-500.0,0.00040445,120]
[340032056,1728339048302,-180.0,0.00040494,120]
[340032058,1728339048313,-8148.25061146,0.00040516,6]
[340032060,1728339048323,-17321.0753686,0.00040517,6]
[340032062,1728339048333,-8148.25061146,0.00040517,6]
[340032064,1728339048343,-8148.25061146,0.00040526,6]
[340032066,1728339048353,-17321.0753686,0.00040527,6]
[340032068,1728339048363,-8148.25061146,0.00040527,6]
[340032070,1728339048374,-34642.1507373,0.00040536,6]
[340032072,1728339048384,-48889.5036688,0.00040536,6]
[340032074,1728339048394,-500.0,0.00040537,120]
[340032076,1728339048404,-17321.0753686,0.00040537,6]
[340032078,1728339048414,-16296.5012229,0.00040537,6]
[340032080,1728339048424,-500.0,0.00040546,120]
[340032082,1728339048433,-500.0,0.00040546,120]
[340032084,1728339048443,-500.0,0.00040546,120]
[340032086,1728339048453,-500.0,0.00040546,120]
[340032088,1728339048462,-1290.33,0.00040546,120]
[340032090,1728339048472,-500.0,0.00040546,120]
[340032092,1728339048481,-500.0,0.00040546,120]
[340032094,1728339048490,-500.0,0.00040546,120]
[340032096,1728339048499,-500.0,0.00040546,120]
[340032098,1728339048509,-500.0,0.00040546,120]
[340032100,1728339048518,-500.0,0.00040546,120]
[340032102,1728339048527,-500.0,0.00040546,120]
[340032104,1728339048536,-248.59230164,0.00040546,120]
[340032106,1728339048546,-500.0,0.00040546,120]
[340032108,1728339048555,-500.0,0.00040546,120]
[340032110,1728339048564,-500.0,0.00040546,120]
[340032112,1728339048574,-500.0,0.00040546,120]
[340032114,1728339048583,-565.69,0.00040546,120]
[340032116,1728339048592,-500.0,0.00040546,120]
[340032118,1728339048602,-500.0,0.00040546,120]
[340032120,1728339048611,-500.0,0.00040546,120]
[340032122,1728339048620,-500.0,0.00040546,120]
[340032124,1728339048630,-500.0,0.00040546,120]
[340032126,1728339048641,-500.0,0.00040546,120]
[340032128,1728339048651,-500.0,0.00040546,120]
[340032130,1728339048660,-500.0,0.00040546,120]
[340032132,1728339048669,-500.0,0.00040546,120]